bitfinex/quotes_SOLUSD_20260311
["timestamp","ask_amount","ask_price","bid_price","bid_amount"]
[1773253380911,11.38718713,87.818,87.76,7.46352296]
[1773253380912,1.53093432,87.809,87.76,7.46352296]
[1773253381198,1.53093432,87.809,87.77,7.26352296]
[1773253382182,1.53093432,87.807,87.764,11.39408215]
[1773253382601,1.53093432,87.807,87.77,7.26352296]
[1773253382794,1.53093432,87.807,87.78,7.26352296]
[1773253382996,1.53093432,87.807,87.77,7.26352296]
[1773253384105,11.38874336,87.806,87.781,11.39198687]
[1773253384403,11.38874336,87.806,87.76,0.2]
[1773253384404,1.53093432,87.786,87.745,1.13966607]
[1773253384704,1.53093432,87.769,87.723,1.5659576]
[1773253385003,1.53093432,87.769,87.73,7.26352296]
[1773253385207,1.53093432,87.769,87.731,1.5659576]
[1773253385382,1.67309589,87.789,87.741,1.5659576]
[1773253385782,1.53093432,87.779,87.741,1.5659576]
[1773253386386,1.53093432,87.777,87.741,1.5659576]
[1773253387399,1.53093432,87.777,87.742,12.96300804]
[1773253387599,11.39237622,87.778,87.751,1.5659576]
[1773253388200,11.39237622,87.778,87.76,7.26352296]
[1773253388407,11.39133802,87.786,87.752,1.5659576]
[1773253388599,11.39133802,87.786,87.761,1.5659576]
[1773253389201,11.39042976,87.793,87.77,7.26352296]
[1773253389513,11.39042976,87.793,87.761,1.5659576]
[1773253390112,15.73213306,87.794,87.78,7.26352296]
[1773253390512,1.61846943,87.794,87.781,11.39198687]
[1773253395195,0.99550189,87.794,87.781,12.95794447]
[1773253395399,7.26352296,87.83,87.781,12.95794447]
[1773253395400,11.38719319,87.818,87.783,0.14216157]
[1773253395722,1.53093432,87.824,87.8,7.26352296]
[1773253395910,1.53093432,87.824,87.783,0.14216157]
[1773253395911,1.53093432,87.824,87.81,7.26352296]
[1773253396111,11.38653883,87.823,87.8,7.26352296]
[1773253398005,11.38605747,87.827,87.81,7.26352296]
[1773253398204,11.38605747,87.827,87.801,11.38939192]
[1773253398610,12.91699179,87.827,87.801,11.38939192]
[1773253399300,1.53093432,87.826,87.801,11.38939192]
[1773253400810,7.26352296,87.81,87.77,7.26352296]
[1773253401015,1.5049646,87.809,87.771,11.39328479]
[1773253401526,1.5049646,87.807,87.771,11.39328479]
[1773253402609,39.85969387,87.808,87.755,0.70998042]
[1773253402610,1.5049646,87.799,87.76,7.26352296]
[1773253402821,1.5049646,87.799,87.756,11.39523223]
[1773253403025,1.5049646,87.799,87.76,7.26352296]
[1773253403534,1.5049646,87.797,87.753,0.56818244]
[1773253403710,39.8642338,87.798,87.73,7.26352296]
[1773253403711,1.5049646,87.779,87.73,7.26352296]
[1773253403909,1.5049646,87.779,87.727,0.49987981]
[1773253403910,1.5049646,87.749,87.71,0.2]
[1773253404135,1.5049646,87.749,87.71,7.46352296]
[1773253404315,1.5049646,87.749,87.711,11.40107854]
[1773253404516,1.5049646,87.749,87.71,0.2]
[1773253405320,1.5049646,87.749,87.72,7.26352296]
[1773253405830,11.39627114,87.748,87.721,11.39977884]
[1773253406034,0.14216157,87.786,87.721,11.39977884]
[1773253406035,1.5049646,87.769,87.721,11.39977884]
[1773253406225,1.5049646,87.768,87.73,7.26352296]
[1773253406531,1.5049646,87.759,87.721,11.39977884]
[1773253406833,1.5049646,87.759,87.72,18.66335654]
[1773253408120,1.5049646,87.757,87.72,7.26352296]
[1773253409610,39.88240387,87.758,87.71,0.2]
[1773253409611,1.5049646,87.739,87.71,0.2]
[1773253410234,1.5049646,87.737,87.71,0.2]
[1773253410823,56.97305349,87.761,87.71,0.2]
[1773253410824,1.5049646,87.758,87.721,0.48398258]
[1773253411538,1.5049646,87.758,87.72,7.26352296]
[1773253411739,39.87377102,87.777,87.74,7.26352296]
[1773253411740,1.5049646,87.775,87.74,7.26352296]
[1773253412136,1.5049646,87.775,87.75,7.26352296]
[1773253412340,11.39289539,87.774,87.751,11.39588152]
[1773253412643,1.5049646,87.785,87.751,11.39588152]
[1773253413955,1.5049646,87.783,87.751,11.39588152]
[1773253414164,1.5049646,87.783,87.76,7.26352296]
[1773253414942,1.5049646,87.783,87.751,39.88558534]
[1773253416041,1.42351186,87.811,87.751,39.88558534]
[1773253416042,12.89383767,87.805,87.77,7.73592818]
[1773253416254,12.89383767,87.805,87.78,7.26352296]
[1773253417040,11.38887307,87.805,87.79,7.26352296]
[1773253417246,11.38887307,87.805,87.78,7.73364004]
[1773253417458,11.38887307,87.805,87.78,7.26352296]
[1773253417864,11.38887307,87.805,87.77,0.47011708]
[1773253417865,12.8910281,87.827,87.8,7.26352296]
[1773253418167,11.38614988,87.826,87.81,7.26352296]
[1773253418342,11.38614988,87.826,87.801,11.38939192]
[1773253418539,11.38614988,87.826,87.81,7.26352296]
[1773253418745,11.3849832,87.835,87.81,7.26352296]
[1773253418953,1.52897057,87.834,87.8,7.26352296]
[1773253419350,1.52897057,87.834,87.801,11.38939192]
[1773253420364,1.52897057,87.834,87.8,7.26352296]
[1773253420365,1.52897057,87.832,87.8,7.26352296]
[1773253420952,1.52897057,87.832,87.81,7.26352296]
[1773253421151,1.52897057,87.843,87.81,7.26352296]
[1773253422763,11.38407595,87.842,87.811,11.38809488]
[1773253423065,35.5396621,87.846,87.811,11.38809488]
[1773253423066,11.38368717,87.845,87.83,7.26352296]
[1773253423269,11.38368717,87.845,87.82,7.26352296]
[1773253423443,1.52897057,87.844,87.82,7.26352296]
[1773253424450,1.52897057,87.844,87.821,11.38679814]
[1773253424653,11.38394635,87.843,87.821,11.38679814]
[1773253426266,1.52897057,87.839,87.751,102.56293375]
[1773253426474,1.52897057,87.837,87.8,7.26352296]
[1773253428168,7.26352296,87.84,87.794,11.39025673]
[1773253428169,1.52897057,87.835,87.794,11.39025673]
[1773253428467,39.84698756,87.836,87.79,7.26352296]
[1773253428468,1.52897057,87.829,87.79,7.26352296]
[1773253428669,1.52897057,87.829,87.78,7.26352296]
[1773253428862,1.52897057,87.819,87.771,0.14216157]
[1773253429170,1.52897057,87.819,87.77,7.26352296]
[1773253429385,1.52897057,87.809,87.77,7.26352296]
[1773253430277,1.52897057,87.807,87.771,11.39328479]
[1773253430857,1.52897057,87.807,87.771,39.87649678]
[1773253431061,11.38602024,87.827,87.8,7.26352296]
[1773253431262,1.52897057,87.826,87.8,7.26352296]
[1773253432370,1.52897057,87.824,87.772,0.14216157]
[1773253432563,1.52897057,87.824,87.781,0.14216157]
[1773253432967,1.52897057,87.824,87.79,7.26352296]
[1773253435076,39.85288591,87.823,87.79,7.26352296]
[1773253435262,1.52897057,87.822,87.791,11.39068925]
[1773253435773,11.38653883,87.823,87.791,39.86741237]
[1773253436377,1.52897057,87.822,87.791,11.39068925]
[1773253437270,11.38679814,87.821,87.791,11.39068925]
[1773253437774,12.91576871,87.821,87.791,11.39068925]
[1773253439674,12.91576871,87.821,87.79,7.26352296]
[1773253439675,12.91576871,87.821,87.79,7.26435022]
[1773253440480,41.38276407,87.821,87.781,0.14216157]
[1773253440667,1.52897057,87.82,87.781,0.14216157]
[1773253441265,1.52897057,87.82,87.78,7.26435022]
[1773253441465,1.52897057,87.819,87.77,7.26435022]
[1773253441665,1.52897057,87.799,87.762,11.39445318]
[1773253441885,11.38848396,87.808,87.747,11.39631697]
[1773253441886,1.52897057,87.789,87.747,11.39631697]
[1773253442087,1.52897057,87.769,87.721,11.39977884]
[1773253442294,0.14216157,87.796,87.721,11.39977884]
[1773253442295,1.52897057,87.759,87.721,11.39977884]
[1773253442794,1.52897057,87.759,87.722,0.14216157]
[1773253443168,1.52897057,87.759,87.721,39.89922595]
[1773253443578,1.52897057,87.759,87.722,0.14216157]
[1773253444472,1.52897057,87.757,87.721,39.89922595]
[1773253444764,1.52897057,87.757,87.721,11.39977884]
[1773253444969,1.52897057,87.749,87.721,11.39977884]
[1773253445383,1.52897057,87.749,87.712,11.40094855]
[1773253446373,1.52897057,87.747,87.712,11.40094855]
[1773253447591,1.52897057,87.747,87.72,7.26435022]
[1773253447895,1.52897057,87.747,87.713,0.14216157]
[1773253448482,1.52897057,87.757,87.72,7.26435022]
[1773253449776,1.4240308,87.779,87.73,7.26435022]
[1773253449777,1.52897057,87.768,87.73,7.26435022]
[1773253449981,1.52897057,87.777,87.74,7.26435022]
[1773253450391,11.3926358,87.776,87.741,11.39718033]
[1773253450596,1.52897057,87.775,87.741,11.39718033]
[1773253450774,1.52897057,87.775,87.741,39.89013117]
[1773253451679,1.52897057,87.775,87.75,7.26435022]
[1773253451879,1.52897057,87.775,87.741,39.89013117]
[1773253453096,1.52897057,87.773,87.741,39.89013117]
[1773253454001,1.52897057,87.773,87.732,11.39834951]
[1773253454296,1.52897057,87.769,87.732,11.39834951]
[1773253454498,1.52897057,87.769,87.74,7.26435022]
[1773253455792,1.52897057,87.769,87.741,39.89013117]
[1773253455994,1.52897057,87.787,87.75,7.26435022]
[1773253456697,1.52897057,87.787,87.742,0.14216157]
[1773253457802,1.52897057,87.785,87.751,11.39588152]
[1773253458704,1.52897057,87.785,87.76,7.26435022]
[1773253459198,1.52897057,87.785,87.75,7.26435022]
[1773253459396,1.52897057,87.785,87.747,11.39639661]
[1773253459902,1.52897057,87.783,87.741,11.39718033]
[1773253460599,1.52897057,87.779,87.741,11.39718033]
[1773253460784,1.52897057,87.778,87.741,11.39718033]
[1773253462289,39.87377102,87.777,87.73,7.26435022]
[1773253462495,1.52897057,87.776,87.731,11.39847944]
[1773253463407,1.52897057,87.776,87.74,7.26435022]
[1773253467011,1.52897057,87.774,87.74,7.26435022]
[1773253467312,1.52897057,87.774,87.741,11.39718033]
[1773253467607,1.52897057,87.774,87.737,11.39766121]
[1773253467806,1.52897057,87.774,87.731,11.39847944]
[1773253468390,1.52897057,87.772,87.731,11.39847944]
[1773253469308,1.52897057,87.769,87.727,11.39891909]
[1773253469511,1.52897057,87.767,87.727,11.39891909]
[1773253469814,1.52897057,87.765,87.727,11.39891909]
[1773253470010,1.52897057,87.759,87.722,11.39957997]
[1773253471414,1.52897057,87.757,87.72,7.26435022]
[1773253471719,1.52897057,87.757,87.71,0.2]
[1773253471910,39.88240387,87.758,87.673,11.40602009]
[1773253471911,1.52897057,87.709,87.673,11.40602009]
[1773253472096,1.42440402,87.756,87.67,1e-08]
[1773253472097,1.52897057,87.699,87.67,1e-08]
[1773253472294,1.52897057,87.689,87.651,11.40888295]
[1773253472510,1.42446895,87.752,87.651,11.40888295]
[1773253472511,7.26435022,87.73,87.678,0.47975247]
[1773253472717,7.26435022,87.74,87.69,7.26435022]
[1773253473008,0.14216157,87.739,87.69,7.26435022]
[1773253473214,7.26435022,87.73,87.69,7.26435022]
[1773253473591,11.39873929,87.729,87.692,0.4771631]
[1773253473893,11.39873929,87.729,87.652,0.4771631]
[1773253474099,11.39873929,87.729,87.68,7.26435022]
[1773253474100,7.26435022,87.72,87.68,7.26435022]
[1773253474315,39.89558753,87.729,87.68,7.26435022]
[1773253474508,1.46691618,87.728,87.69,7.26435022]
[1773253474905,1.46691618,87.728,87.68,7.74151332]
[1773253475620,1.42445272,87.753,87.66,3.69383402]
[1773253475621,1.46691618,87.735,87.71,7.26435022]
[1773253476122,1.46691618,87.747,87.72,7.26435022]
[1773253476823,1.42435533,87.759,87.717,0.47454998]
[1773253476824,1.46691618,87.757,87.717,0.47454998]
[1773253477003,1.46691618,87.757,87.72,7.26435022]
[1773253477526,1.46691618,87.755,87.72,7.26435022]
[1773253477824,11.39523223,87.756,87.71,7.26435022]
[1773253477825,1.46691618,87.749,87.71,7.26435022]
[1773253478023,1.46691618,87.729,87.69,7.26435022]
[1773253478407,1.46691618,87.729,87.7,7.26435022]
[1773253478817,85.60640331,87.756,87.685,39.91560699]
[1773253478818,7.26435022,87.75,87.71,7.26435022]
[1773253479003,1.46691618,87.748,87.71,7.26435022]
[1773253479205,1.46691618,87.746,87.71,7.26435022]
[1773253479711,1.46691618,87.744,87.7,7.26435022]
[1773253480602,39.88831271,87.745,87.7,7.26435022]
[1773253480603,1.46691618,87.739,87.7,7.26435022]
[1773253481009,39.88831271,87.745,87.697,11.40289861]
[1773253481010,1.41663655,87.748,87.71,7.26435022]
[1773253481225,1.41663655,87.748,87.72,7.26435022]
[1773253481521,1.41663655,87.748,87.701,0.47317372]
[1773253481522,1.41663655,87.746,87.701,0.47317372]
[1773253481827,1.41663655,87.746,87.71,7.26435022]
[1773253482022,1.41663655,87.744,87.702,11.40224852]
[1773253482808,1.41663655,87.744,87.702,39.90786982]
[1773253483330,1.41663655,87.744,87.71,7.26435022]
[1773253484322,1.41663655,87.742,87.711,11.40107854]
[1773253485313,12.81119774,87.762,87.73,7.26435022]
[1773253485618,1.41663655,87.761,87.73,7.26435022]
[1773253485935,1.41663655,87.759,87.72,7.26435022]
[1773253487006,1.42437156,87.758,87.711,39.90377489]
[1773253487238,1.41663655,87.755,87.711,39.90377489]
[1773253487531,1.41663655,87.755,87.72,7.26435022]
[1773253488516,1.41663655,87.753,87.706,11.4017285]
[1773253488713,1.41663655,87.749,87.71,7.26435022]
[1773253488914,1.41663655,87.747,87.71,7.26435022]
[1773253490539,1.42120711,87.737,87.693,0.14216157]
[1773253490835,1.42120711,87.737,87.7,7.26435022]
[1773253492334,1.42120711,87.737,87.687,0.4706486]
[1773253492335,1.42120711,87.729,87.68,7.26435022]
[1773253492534,1.42120711,87.725,87.681,11.40497941]
[1773253493631,1.42120711,87.725,87.681,39.91742794]
[1773253494541,1.42120711,87.723,87.68,7.26435022]
[1773253494744,1.42120711,87.709,87.67,7.26435022]
[1773253495034,1.42120711,87.709,87.68,7.26435022]
[1773253496546,1.4249886,87.72,87.691,11.8727256]
[1773253496857,11.39985149,87.721,87.692,0.46904678]
[1773253497347,1.42120711,87.72,87.691,11.40367882]
[1773253498523,12.82124587,87.719,87.69,7.26435022]
[1773253498732,1.42120711,87.718,87.69,7.26435022]
[1773253500738,11.40029868,87.717,87.691,11.40367882]
[1773253500957,1.42120711,87.716,87.685,11.40445914]
[1773253501638,1.42120711,87.716,87.69,7.28191296]
[1773253502647,102.8,87.775,87.712,0.70580167]
[1773253502816,102.8,87.775,87.69,3.69383402]
[1773253502817,11.39354441,87.769,87.73,7.28191296]
[1773253503021,1.42420927,87.768,87.73,7.28191296]
[1773253503541,11.39354441,87.769,87.73,7.28191296]
[1773253503930,1.42420927,87.768,87.73,7.28191296]
[1773253504332,11.39354441,87.769,87.74,7.28191296]
[1773253504548,11.39198687,87.781,87.75,7.28191296]
[1773253504842,11.39198687,87.781,87.737,0.70559786]
[1773253504843,1.42120711,87.778,87.741,11.39718033]
[1773253505147,11.39224643,87.779,87.731,11.39847944]
[1773253505148,1.42120711,87.769,87.731,11.39847944]
[1773253505340,1.42120711,87.769,87.731,39.89467804]
[1773253506822,1.42120711,87.776,87.742,0.70500036]
[1773253507021,1.42120711,87.776,87.741,39.89013117]
[1773253507022,1.42120711,87.775,87.741,39.89013117]
[1773253507646,1.42120711,87.775,87.75,7.28191296]
[1773253508624,1.42120711,87.769,87.72,7.28191296]
[1773253508829,11.39393386,87.766,87.721,39.89922595]
[1773253509022,1.42120711,87.765,87.721,39.89922595]
[1773253509228,1.42120711,87.763,87.721,39.89922595]
[1773253510026,1.42120711,87.761,87.721,39.89922595]
[1773253511341,11.39471285,87.76,87.721,39.89922595]
[1773253511525,1.42120711,87.759,87.721,39.89922595]
[1773253512145,1.42120711,87.759,87.73,7.28191296]
[1773253514141,1.42120711,87.757,87.72,7.28191296]
[1773253514441,1.42120711,87.757,87.692,0.14216157]
[1773253514442,1.42120711,87.776,87.74,7.28191296]
[1773253514633,1.56336868,87.774,87.74,7.28191296]
[1773253514833,1.42120711,87.772,87.74,7.28191296]
[1773253515048,102.8,87.775,87.74,7.28191296]
[1773253515049,1.42120711,87.77,87.74,7.28191296]
[1773253515840,28.47807815,87.787,87.738,0.70298027]
[1773253515841,1.42362534,87.804,87.761,1.37380817]
[1773253516042,39.8619637,87.803,87.77,7.28191296]
[1773253516343,7.28191296,87.78,87.741,1.37380817]
[1773253516551,7.28191296,87.79,87.741,1.37380817]
[1773253516744,7.28191296,87.78,87.732,1.37380817]
[1773253516947,1.4240308,87.779,87.74,7.28191296]
[1773253517446,1.42404702,87.778,87.74,7.28191296]
[1773253517748,1.42120711,87.783,87.74,7.28191296]
[1773253518046,1.42120711,87.779,87.74,7.28191296]
[1773253518357,1.42120711,87.774,87.736,11.39771898]
[1773253518533,1.42120711,87.772,87.736,11.39771898]
[1773253518850,1.42120711,87.77,87.736,11.39771898]
[1773253519149,1.42120711,87.768,87.736,11.39771898]
[1773253519350,1.42120711,87.768,87.74,7.28191296]
[1773253519650,1.56625726,87.775,87.736,11.39771898]
[1773253519651,1.42409569,87.775,87.751,1.37380817]
[1773253519942,1.35375326,87.785,87.751,1.37380817]
[1773253520344,1.35375326,87.783,87.752,11.39575166]
[1773253520645,1.35375326,87.794,87.77,7.28191296]
[1773253520841,1.35375326,87.794,87.761,1.44655664]
[1773253521047,1.35375326,87.789,87.752,11.39575166]
[1773253521239,1.35375326,87.787,87.752,11.39575166]
[1773253521549,1.35375326,87.785,87.752,11.39575166]
[1773253522239,1.35375326,87.779,87.73,7.28191296]
[1773253522449,1.35375326,87.769,87.73,18.68052232]
[1773253522776,1.35375326,87.767,87.726,1.44655664]
[1773253523047,1.35375326,87.767,87.691,1.14036788]
[1773253523048,1.35375326,87.765,87.74,7.28191296]
[1773253523267,1.35375326,87.776,87.75,7.28191296]
[1773253523433,2.77783273,87.776,87.741,1.44655664]
[1773253523637,1.35375326,87.775,87.741,1.44655664]
[1773253523845,1.35375326,87.775,87.75,7.28191296]
[1773253524043,1.35375326,87.775,87.75,8.7284696]
[1773253524346,11.39237622,87.778,87.751,1.44655664]
[1773253525326,11.3918571,87.782,87.752,11.39575166]
[1773253525650,11.3918571,87.782,87.752,12.8423083]
[1773253526140,12.74559543,87.783,87.76,2.90821502]
[1773253526347,12.74559543,87.783,87.753,1.44655664]
[1773253526525,1.35375326,87.782,87.753,1.44655664]
[1773253526730,12.74561036,87.782,87.76,2.90821502]
[1773253527544,1.35375326,87.781,87.753,1.44655664]
[1773253527748,1.35375326,87.781,87.754,11.39549194]
[1773253529154,11.39211665,87.78,87.755,1.44655664]
[1773253529350,1.42388481,87.788,87.754,11.39549194]
[1773253529351,1.42388481,87.788,87.761,1.44655664]
[1773253529559,1.35375326,87.792,87.761,1.44655664]
[1773253529738,1.35375326,87.789,87.75,2.90821502]
[1773253530057,1.35375326,87.788,87.75,2.90821502]
[1773253530229,1.35375326,87.786,87.75,2.90821502]
[1773253531242,1.35375326,87.784,87.751,11.39588152]
[1773253532051,1.35375326,87.782,87.75,2.90821502]
[1773253533241,1.35375326,87.78,87.75,2.90821502]
[1773253533443,1.35375326,87.78,87.742,0.672728]
[1773253533754,1.4240308,87.779,87.741,11.39718033]
[1773253533934,1.35375326,87.778,87.75,2.90821502]
[1773253534128,1.35375326,87.778,87.741,11.39718033]
[1773253534129,1.35375326,87.776,87.74,2.90821502]
[1773253534443,1.35375326,87.774,87.741,11.39718033]
[1773253535532,1.42407947,87.776,87.741,11.39718033]
[1773253535533,1.35375326,87.772,87.741,12.06909911]
[1773253536730,11.39328479,87.771,87.741,12.06909911]
[1773253536932,1.35375326,87.77,87.741,12.06909911]
[1773253537134,1.35375326,87.77,87.742,0.67131322]
[1773253541257,1.42401458,87.78,87.75,2.90821502]
[1773253541439,11.39068925,87.791,87.75,2.90821502]
[1773253541634,1.42385237,87.79,87.75,2.90821502]
[1773253541835,4.33206739,87.79,87.75,2.90821502]
[1773253542053,4.33206739,87.79,87.748,1.35494151]
[1773253542260,4.33206739,87.79,87.74,2.90821502]
[1773253542261,0.14216157,87.789,87.74,1.35494151]
[1773253542458,0.14216157,87.787,87.741,1.35494151]
[1773253542659,0.14216157,87.785,87.741,1.35494151]
[1773253542852,1.42394969,87.784,87.741,1.35494151]
[1773253543358,1.33541376,87.787,87.751,11.39588152]
[1773253543538,1.33541376,87.786,87.751,11.39588152]
[1773253545248,1.33541376,87.784,87.751,11.39588152]
[1773253545457,1.33541376,87.784,87.752,1.35494151]
[1773253546254,1.33541376,87.782,87.751,11.39588152]
[1773253547455,1.33541376,87.78,87.75,4.26315653]
[1773253547853,1.33541376,87.78,87.75,1.35494151]
[1773253548060,1.33541376,87.78,87.74,2.90821502]
[1773253548454,1.33541376,87.78,87.741,1.35494151]
[1773253549560,1.33541376,87.778,87.742,12.75199195]
[1773253549869,1.33541376,87.778,87.742,12.7377501]
[1773253550251,1.37552067,87.776,87.735,1.34069966]
[1773253550545,1.37552067,87.774,87.74,2.90821502]
[1773253550763,1.37552067,87.774,87.741,1.34069966]
[1773253551267,1.42404702,87.778,87.751,1.34069966]
[1773253551466,1.37552067,87.786,87.762,11.39445318]
[1773253552783,1.37552067,87.786,87.763,1.34069966]
[1773253554571,1.37552067,87.784,87.747,1.34069966]
[1773253554771,1.37552067,87.782,87.741,1.34069966]
[1773253555763,11.39198687,87.781,87.742,11.39705044]
[1773253555962,1.37552067,87.78,87.743,1.34069966]
[1773253557256,39.87195406,87.781,87.75,2.90821502]
[1773253557257,1.37552067,87.778,87.75,2.90821502]
[1773253558173,1.37552067,87.776,87.75,2.90821502]
[1773253558468,1.37552067,87.776,87.751,11.39588152]
[1773253558671,1.37552067,87.776,87.751,12.73658118]
[1773253559461,11.39276559,87.775,87.751,12.73658118]
[1773253559665,1.37552067,87.774,87.747,11.39633424]
[1773253560674,1.37552067,87.774,87.741,11.39718033]
[1773253560855,1.37552067,87.759,87.712,1.34069966]
[1773253561058,1.37552067,87.757,87.712,1.34069966]
[1773253561552,1.37552067,87.755,87.713,11.40081857]
[1773253561756,1.37552067,87.755,87.714,1.34069966]
[1773253562857,1.37552067,87.755,87.721,1.34069966]
[1773253564178,1.37552067,87.753,87.722,1.34069966]
[1773253564873,1.37552067,87.753,87.721,11.39972995]
[1773253564874,11.39495903,87.759,87.741,1.34069966]
[1773253565065,1.37552067,87.766,87.741,1.34069966]
[1773253565268,1.37552067,87.766,87.75,2.91089266]
[1773253565471,1.37552067,87.775,87.75,4.25159232]
[1773253565673,11.39133802,87.786,87.76,2.91089266]
[1773253565674,1.37552067,87.784,87.76,2.91089266]
[1773253566176,2.91089266,87.8,87.725,3.69383402]
[1773253566177,1.37552067,87.782,87.75,2.91089266]
[1773253566474,41.29501154,87.783,87.74,14.30816596]
[1773253566475,1.37552067,87.78,87.74,14.30816596]
[1773253566662,1.37552067,87.778,87.74,2.91089266]
[1773253566862,2.91089266,87.77,87.73,2.91089266]
[1773253567171,2.91089266,87.77,87.728,1.34069966]
[1773253567172,1.37552067,87.768,87.729,11.39873929]
[1773253567573,1.37552067,87.768,87.73,2.91089266]
[1773253568066,1.37552067,87.768,87.731,1.34069966]
[1773253568267,1.37552067,87.766,87.733,1.34069966]
[1773253568587,1.37552067,87.766,87.74,2.91089266]
[1773253568796,11.39380404,87.767,87.741,1.34069966]
[1773253569660,1.37552067,87.784,87.761,1.34069966]
[1773253569865,1.37552067,87.797,87.771,1.34069966]
[1773253570064,1.37552067,87.795,87.771,1.34069966]
[1773253570259,12.76561585,87.796,87.773,1.34069966]
[1773253570681,1.37552067,87.795,87.773,1.34069966]
[1773253571389,11.39030002,87.794,87.773,1.34069966]
[1773253572180,1.37552067,87.793,87.757,1.34069966]
[1773253572356,1.37552067,87.779,87.734,1.13980896]
[1773253572559,1.37552067,87.779,87.732,1.34069966]
[1773253572560,1.42404702,87.778,87.732,1.34069966]
[1773253572779,1.37552067,87.777,87.732,1.34069966]
[1773253573282,1.37552067,87.777,87.74,2.91089266]
[1773253573473,1.37552067,87.775,87.74,14.30819235]
[1773253573867,1.37552067,87.775,87.74,15.64889201]
[1773253574063,1.37552067,87.775,87.741,1.34069966]
[1773253576589,12.76841606,87.774,87.743,1.34069966]
[1773253576762,1.37552067,87.793,87.761,1.34069966]
[1773253577363,11.39036164,87.794,87.771,1.34069966]
[1773253577767,11.39031046,87.794,87.771,1.34069966]
[1773253577983,1.37552067,87.8,87.771,1.34069966]
[1773253578581,25.45437357,87.798,87.771,1.34069966]
[1773253578775,1.37552067,87.797,87.771,1.34069966]
[1773253578992,1.37552067,87.797,87.761,1.34069966]
[1773253579281,1.37552067,87.797,87.77,2.91089266]
[1773253579582,1.37552067,87.797,87.771,1.34069966]
[1773253579963,1.37552067,87.797,87.77,2.91089266]
[1773253580266,1.37552067,87.797,87.76,2.91089266]
[1773253581162,52.55321891,87.798,87.732,1.28199652]
[1773253581163,1.38151366,87.795,87.77,2.91089266]
[1773253581569,1.38151366,87.795,87.77,4.27172259]
[1773253582074,1.38151366,87.795,87.762,1.36082993]
[1773253582481,1.38151366,87.795,87.77,2.91089266]
[1773253585088,11.39030002,87.794,87.771,11.39328479]
[1773253585488,12.77181368,87.794,87.771,11.39328479]
[1773253585790,1.38151366,87.794,87.771,11.39328479]
[1773253585998,12.77181368,87.794,87.77,2.91089266]
[1773253586162,12.77181368,87.794,87.768,1.36082993]
[1773253586366,1.38151366,87.793,87.768,1.36082993]
[1773253586664,1.38151366,87.793,87.749,1.13961412]
[1773253586665,1.38151366,87.793,87.771,1.36082993]
[1773253587383,1.38151366,87.793,87.769,11.39354441]
[1773253587384,1.38151366,87.791,87.769,11.39354441]
[1773253588081,1.38151366,87.791,87.764,1.36082993]
[1773253588287,1.38151366,87.791,87.766,1.36082993]
[1773253589377,1.38151366,87.789,87.753,28.48883847]
[1773253589583,1.38151366,87.789,87.757,11.39510238]
[1773253589891,1.38151366,87.789,87.76,2.91089266]
[1773253590275,1.38151366,87.789,87.76,4.27172259]
[1773253591470,1.38151366,87.787,87.761,12.75541294]
[1773253591988,11.39054161,87.793,87.771,1.36082993]
[1773253592289,11.39030002,87.794,87.771,1.36082993]
[1773253594374,11.39030002,87.794,87.772,1.36082993]
[1773253596005,1.38151366,87.793,87.767,1.36082993]
[1773253596176,1.38151366,87.793,87.771,1.36082993]
[1773253596377,24.07878506,87.798,87.773,1.36082993]
[1773253596786,1.38151366,87.797,87.773,1.36082993]
[1773253598694,11.39004054,87.796,87.773,1.36082993]
[1773253598892,12.7715542,87.796,87.773,1.36082993]
[1773253599590,12.7715542,87.796,87.774,11.39289539]
[1773253599771,1.38151366,87.795,87.773,1.36082993]
[1773253599975,1.38151366,87.795,87.774,11.39289539]
[1773253600595,1.38151366,87.795,87.773,1.36082993]
[1773253600790,11.39030002,87.794,87.773,1.36082993]
[1773253601779,11.39030002,87.794,87.774,11.39289539]
[1773253602175,12.68897821,87.798,87.781,1.36730565]
[1773253602483,11.38747038,87.816,87.791,0.23182902]
[1773253602879,1.42039025,87.815,87.791,0.23182902]
[1773253603082,1.42039025,87.815,87.79,2.91089266]
[1773253604599,1.42039025,87.813,87.791,11.39068925]
[1773253606178,1.42039025,87.813,87.78,2.91089266]
[1773253606488,1.42039025,87.811,87.78,2.91089266]
[1773253606691,1.42039025,87.799,87.76,2.91089266]
[1773253606893,1.42039025,87.799,87.75,2.91089266]
[1773253607082,1.42039025,87.797,87.75,2.91089266]
[1773253607797,1.42039025,87.797,87.76,2.91089266]
[1773253608311,1.42039025,87.795,87.76,2.91089266]
[1773253609297,1.42039025,87.795,87.753,11.39561249]
[1773253612596,1.35115915,87.793,87.754,0.22881087]
[1773253613091,1.35115915,87.793,87.76,2.91089266]
[1773253614001,1.35115915,87.797,87.771,0.22848874]
[1773253614496,1.35115915,87.797,87.77,3.1393814]
[1773253615002,11.39004054,87.796,87.771,11.39328479]
[1773253616409,11.39004054,87.796,87.771,11.62114033]
[1773253617608,1.35115915,87.823,87.791,0.22754438]
[1773253617905,1.35115915,87.823,87.774,3.69383402]
[1773253617906,11.38666848,87.822,87.8,2.91089266]
[1773253618299,1.35115915,87.821,87.8,2.91089266]
[1773253618493,1.35115915,87.821,87.79,2.91089266]